fUSD/lending_fUSD_20260517
["ID","MTS","AMOUNT","RATE_DAILY","PERIOD"]
[422487381,1778989853000,-150.0,0.00039257,7]
[422487398,1778989853000,-2313.0,0.00039374,11]
[422487372,1778989853000,-1000.0,0.00039183,2]
[422487373,1778989853000,-400.0,0.00039183,2]
[422487371,1778989853000,-150.0,0.00039166,7]
[422487375,1778989853000,-150.0,0.00039202,7]
[422487374,1778989853000,-150.0,0.00039202,7]
[422487376,1778989853000,-162.55,0.00039211,2]
[422487377,1778989853000,-150.0,0.00039211,7]
[422487378,1778989853000,-1000.0,0.00039212,90]
[422487379,1778989853000,-150.0,0.00039218,7]
[422487389,1778989853000,-150.0,0.00039311,7]
[422487390,1778989853000,-2557.44843549,0.00039336,11]
[422487392,1778989853000,-2557.44843548,0.00039336,11]
[422487380,1778989853000,-1000.0,0.00039237,90]
[422487383,1778989853000,-150.0,0.00039279,30]
[422487423,1778989853000,-167.385,0.00039548,47]
[422487387,1778989853000,-153.0,0.000393,120]
[422487382,1778989853000,-150.0,0.00039261,7]
[422487384,1778989853000,-11340.79548359,0.0003929,2]
[422487386,1778989853000,-334.5992,0.000393,60]
[422487388,1778989853000,-1572.578401,0.000393,31]
[422487402,1778989853000,-1000.0,0.00039388,90]
[422487396,1778989853000,-150.0,0.00039361,7]
[422487395,1778989853000,-2557.44843548,0.00039336,11]
[422487403,1778989853000,-1000.0,0.00039388,28]
[422487385,1778989853000,-151.28656754,0.000393,2]
[422487429,1778989853000,-151.12453134,0.00039562,7]
[422487460,1778989853000,-213.47505599,0.00039733,2]
[422487428,1778989853000,-152.9798762,0.00039562,7]
[422487447,1778989853000,-1000.0,0.00039601,90]
[422487453,1778989853000,-1000.0,0.00039699,18]
[422487454,1778989853000,-1000.0,0.00039699,40]
[422487451,1778989853000,-2313.0,0.00039653,11]
[422487459,1778989853000,-1000.0,0.00039728,5]
[422487469,1778989853000,-153.0,0.000398,120]
[422487470,1778989853000,-245.7,0.000398,23]
[422487458,1778989853000,-300.0,0.00039726,120]
[422487471,1778989853000,-167.385,0.000398,48]
[422487461,1778989853000,-1000.0,0.00039764,90]
[422487462,1778989853000,-1000.0,0.00039775,117]
[422487466,1778989853000,-1000.0,0.00039799,23]
[422487464,1778989853000,-1000.0,0.00039799,31]
[422487467,1778989853000,-1226.61899881,0.000398,120]
[422487463,1778989853000,-280.38875619,0.0003979,2]
[422487468,1778989853000,-158.0,0.000398,120]
[422487465,1778989853000,-1000.0,0.00039799,48]
[422487472,1778989853000,-194.168,0.000398,41]
[422487474,1778989853000,-1500.0,0.000398,31]
[422487473,1778989853000,-194.168,0.000398,41]
[422487476,1778989853000,-360547.93463235,0.000398,30]
[422487475,1778989853000,-200.0,0.000398,19]
[422487477,1778989853000,-339.44470919,0.000398,30]
[422487446,1778989853000,-150.0,0.00039579,2]
[422487456,1778989853000,-1000.0,0.00039725,60]
[422487426,1778989853000,-156.06399732,0.00039562,30]
[422487452,1778989853000,-1000.0,0.00039679,90]
[422487424,1778989853000,-214.36,0.00039548,120]
[422487420,1778989853000,-345.44,0.00039492,120]
[422487425,1778989853000,-1000.0,0.00039551,90]
[422487427,1778989853000,-151.67691092,0.00039562,7]
[422487430,1778989853000,-150.37713029,0.00039562,7]
[422487437,1778989853000,-357.87,0.00039573,30]
[422487439,1778989853000,-4571.217342,0.00039573,2]
[422487432,1778989853000,-150.59932888,0.00039562,7]
[422487431,1778989853000,-155.57247345,0.00039562,7]
[422487443,1778989853000,-5293.5824573,0.00039573,2]
[422487433,1778989853000,-153.24753908,0.00039562,7]
[422487435,1778989853000,-222.62797132,0.00039562,7]
[422487449,1778989853000,-1000.0,0.0003964,90]
[422487434,1778989853000,-154.04729316,0.00039562,7]
[422487436,1778989853000,-150.0,0.00039573,30]
[422487457,1778989853000,-350.0,0.00039726,5]
[422487455,1778989853000,-1000.0,0.0003971,11]
[422487450,1778989853000,-159.27,0.00039643,120]
[422487448,1778989853000,-1000.0,0.00039607,90]
[422487445,1778989853000,-216.03066,0.00039577,30]
[422487442,1778989853000,-61925.9962928,0.00039573,2]
[422487440,1778989853000,-329.9642124,0.00039573,2]
[422487441,1778989853000,-54600.8522573,0.00039573,2]
[422487438,1778989853000,-183830.0843792,0.00039573,2]
[422487444,1778989853000,-1000.0,0.00039575,90]
[422487478,1778989854000,-309.96996065,0.00036296,2]
[422487480,1778989854000,-1756.26465542,0.000398,30]
[422487479,1778989854000,-769111.37871969,0.000398,30]
[422487481,1778989854000,-300.0,0.00036296,2]
[422487482,1778989854000,-5666.8893824,0.000398,30]
[422487483,1778989854000,-452.85,0.0002863,2]
[422487485,1778989854000,-135.80900429,0.00028661,7]
[422487484,1778989854000,-317.04099571,0.00028661,7]
[422487494,1778989854000,-300.0,0.00036296,2]
[422487493,1778989854000,-300.0,0.00036296,2]
[422487491,1778989854000,-452.85,0.00028852,7]
[422487488,1778989854000,-452.85,0.00028756,7]
[422487490,1778989854000,-452.85,0.0002882,2]
[422487499,1778989854000,-353.05001,0.0002863,2]
[422487495,1778989854000,-399907.87707586,0.000398,30]
[422487496,1778989854000,-1704.22707964,0.000398,30]
[422487498,1778989854000,-596.08990642,0.0002863,2]
[422487489,1778989854000,-452.85,0.00028788,30]
[422487487,1778989854000,-452.85,0.00028725,2]
[422487486,1778989854000,-452.85,0.00028693,30]
[422487492,1778989854000,-452.85,0.00028883,30]
[422487497,1778989854000,-1410.58,0.000398,30]
[422487503,1778990084000,152.0,0.0002,2]
[422487504,1778990085000,152.0,0.00021,2]
[422487505,1778990162000,246.0,0.0002,2]
[422487506,1778990163000,246.0,0.00021,2]
[422487507,1778990209000,343.0,0.0002,2]
[422487508,1778990210000,343.0,0.00021,2]
[422487511,1778990269000,155.0,0.0002,2]
[422487512,1778990271000,155.0,0.00021,2]
[422487515,1778990310000,154.0,0.0002,2]
[422487516,1778990311000,154.0,0.00021,2]
[422487518,1778990387000,491.0,0.0002,2]
[422487519,1778990389000,491.0,0.00021,2]
[422487521,1778990419000,172.73,0.00017412,2]
[422487520,1778990419000,172.73,0.00011761,2]
[422487522,1778990464000,193.0,0.0002,2]
[422487523,1778990465000,193.0,0.00021,2]
[422487525,1778990500000,156.0,0.0002,2]
[422487526,1778990502000,168.0,0.00021,2]
[422487527,1778990529000,152.0,0.0002,2]
[422487528,1778990530000,152.0,0.00021,2]
[422487529,1778990535000,691.33448341,0.0001995,15]
[422487532,1778990558000,150.0,0.000209,2]
[422487533,1778990577000,792.38934128,0.000177,2]
[422487534,1778990585000,250.0,0.00014,2]
[422487535,1778990586000,300.0,0.00016,2]
[422487536,1778990587000,350.0,0.00018,2]
[422487538,1778990588000,275.17382469,0.0002,2]
[422487537,1778990588000,124.82617531,0.0002,2]
[422487539,1778990602000,264.0,0.0002,2]
[422487540,1778990603000,264.0,0.00021,2]
[422487542,1778990634000,207.27,0.00027996,120]
[422487541,1778990634000,207.27,0.00025197,120]
[422487543,1778990646000,809.34080542,0.0001611,15]
[422487544,1778990673000,5000.01,0.00018,2]
[422487545,1778990673000,9190.66919458,0.00018,2]
[422487547,1778990673000,10000.01,0.00018,2]
[422487546,1778990673000,10000.01,0.00018,2]
[422487548,1778990673000,10000.01,0.00018,2]
[422487552,1778990733000,12299.95908802,0.0001,2]
[422487553,1778990734000,827.34763456,9.04e-05,2]
[422487554,1778990871000,2000.0,0.00029136,120]
[422487560,1778991031000,-1068.27736952,0.00016484,2]
[422487559,1778991031000,-276.244805,0.00016401,2]
[422487567,1778991031000,-3307.16045395,0.000166,2]
[422487562,1778991031000,-500.91157275,0.000165,2]
[422487566,1778991031000,-7906.04370117,0.000166,2]
[422487564,1778991031000,-1200.0,0.00016599,2]
[422487565,1778991031000,-300.0,0.00016599,2]
[422487561,1778991031000,-144.18556521,0.000165,2]
[422487563,1778991031000,-4976.49996876,0.000165,2]
[422487568,1778991031000,-375.1883772,0.000166,2]
[422487570,1778991031000,-462.19315992,0.000166,2]
[422487569,1778991031000,-322.59321388,0.000166,2]
[422487596,1778991032000,-173.06,0.00021277,2]
[422487592,1778991032000,-2687.05,0.00021273,2]
[422487590,1778991032000,-2000.0,0.0002119,2]
[422487586,1778991032000,-1106.25,0.00020986,2]
[422487582,1778991032000,-2351.0,0.00020016,2]
[422487584,1778991032000,-3240.71,0.00020674,2]
[422487581,1778991032000,-299.999999,0.0002,2]
[422487578,1778991032000,-4190.0,0.00019,2]
[422487588,1778991032000,-500.0,0.00021102,2]
[422487594,1778991032000,-997.01,0.00021273,2]
[422487579,1778991032000,-587.0,0.00019818,2]
[422487576,1778991032000,-420.0,0.00018137,2]
[422487575,1778991032000,-1800.47162974,0.000181,2]
[422487574,1778991032000,-66582.67363055,0.00018,2]
[422487573,1778991032000,-4435.41739322,0.000178,2]
[422487571,1778991032000,-1891.86075167,0.000166,2]
[422487577,1778991032000,-1680.0,0.00018228,2]
[422487609,1778991032000,-246.0,0.00022,2]
[422487601,1778991032000,-823.0,0.00021654,2]
[422487598,1778991032000,-48424.48603759,0.000215,2]
[422487572,1778991032000,-1744.84904581,0.000178,2]
[422487617,1778991032000,-264.0,0.00022,2]
[422487618,1778991032000,-36233.45333824,0.00022,4]
[422487615,1778991032000,-193.0,0.00022,2]
[422487616,1778991032000,-152.0,0.00022,2]
[422487614,1778991032000,-433.25502729,0.00022,2]
[422487612,1778991032000,-154.0,0.00022,2]
[422487608,1778991032000,-152.0,0.00022,2]
[422487611,1778991032000,-161.0,0.00022,2]
[422487605,1778991032000,-326.0545,0.000219,2]
[422487606,1778991032000,-3292.0,0.0002198,2]
[422487602,1778991032000,-181.84,0.00021702,2]
[422487604,1778991032000,-733.82058898,0.000218,2]
[422487603,1778991032000,-1631.97457154,0.0002179,2]
[422487607,1778991032000,-309.83370885,0.00021999,2]
[422487600,1778991032000,-1106.25,0.0002151,2]
[422487610,1778991032000,-343.0,0.00022,2]
[422487613,1778991032000,-491.0,0.00022,2]
[422487620,1778991037000,-5711.84362664,0.00022,4]
[422487725,1778991038000,-500.0,0.0002373,2]
[422487649,1778991038000,-2157.0,0.00023,2]
[422487647,1778991038000,-153.0,0.00023,2]
[422487651,1778991038000,-1106.25,0.00023084,2]
[422487650,1778991038000,-172.73,0.00023062,2]
[422487652,1778991038000,-166.66,0.0002313,2]
[422487657,1778991038000,-5000.01,0.00023331,2]
[422487653,1778991038000,-733.82058891,0.00023178,2]
[422487655,1778991038000,-150.0,0.00023296,2]
[422487656,1778991038000,-2000.0,0.00023331,2]
[422487654,1778991038000,-11340.7954836,0.00023231,2]
[422487659,1778991038000,-188.75467981,0.00023331,2]
[422487658,1778991038000,-5000.0,0.00023331,2]
[422487660,1778991038000,-308.10604557,0.00023331,6]
[422487661,1778991038000,-2674.268,0.00023331,3]
[422487664,1778991038000,-161.302,0.00023331,3]
[422487666,1778991038000,-2051.34953349,0.00023331,2]
[422487668,1778991038000,-151.04577663,0.000234,28]
[422487673,1778991038000,-500.0,0.0002343,2]
[422487672,1778991038000,-164.41440023,0.0002343,2]
[422487670,1778991038000,-151.05,0.000234,28]
[422487671,1778991038000,-333.01929003,0.00023421,2]
[422487648,1778991038000,-264.0,0.00023,2]
[422487645,1778991038000,-193.0,0.00023,2]
[422487641,1778991038000,-246.0,0.00023,2]
[422487644,1778991038000,-491.0,0.00023,2]
[422487621,1778991038000,-77986.96041928,0.00022,4]
[422487622,1778991038000,-1106.25,0.00022035,2]
[422487624,1778991038000,-733.82058891,0.00022144,2]
[422487625,1778991038000,-2398.97,0.00022312,2]
[422487626,1778991038000,-151.0,0.00022353,2]
[422487623,1778991038000,-243.66988495,0.0002211,2]
[422487627,1778991038000,-200.0,0.00022397,2]
[422487628,1778991038000,-207.27,0.00022397,2]
[422487634,1778991038000,-231.49,0.00022646,2]
[422487629,1778991038000,-296.83503575,0.00022407,2]
[422487677,1778991038000,-500.0,0.0002343,2]
[422487632,1778991038000,-270.82,0.00022518,2]
[422487635,1778991038000,-5000.0,0.00022646,2]
[422487630,1778991038000,-733.82058891,0.00022489,2]
[422487631,1778991038000,-150.0,0.00022491,2]
[422487637,1778991038000,-1631.97457154,0.00022725,2]
[422487633,1778991038000,-1106.25,0.0002256,2]
[422487723,1778991038000,-500.0,0.0002373,2]
[422487639,1778991038000,-181.84,0.00022907,2]
[422487640,1778991038000,-156.82510781,0.00023,2]
[422487642,1778991038000,-343.0,0.00023,2]
[422487643,1778991038000,-154.0,0.00023,2]
[422487636,1778991038000,-2500.0,0.00022703,2]
[422487676,1778991038000,-500.0,0.0002343,2]
[422487638,1778991038000,-733.82058891,0.00022833,2]
[422487675,1778991038000,-500.0,0.0002343,2]
[422487700,1778991038000,-506.38825692,0.0002343,2]
[422487706,1778991038000,-501.91072122,0.0002343,2]
[422487705,1778991038000,-505.1114487,0.0002343,2]
[422487708,1778991038000,-403.63039622,0.00023462,2]
[422487707,1778991038000,-1500000.0,0.00023431,2]
[422487710,1778991038000,-2051.34953343,0.00023528,2]
[422487709,1778991038000,-733.82058891,0.00023522,2]
[422487712,1778991038000,-191.96350983,0.00023559,2]
[422487711,1778991038000,-286.85888162,0.0002353,2]
[422487717,1778991038000,-10276.8416,0.00023631,2]
[422487716,1778991038000,-173.46,0.000236,7]
[422487715,1778991038000,-774.94,0.000236,7]
[422487714,1778991038000,-150.0,0.00023585,2]
[422487718,1778991038000,-1631.97457154,0.00023659,2]
[422487719,1778991038000,-812.0,0.00023661,2]
[422487721,1778991038000,-500.0,0.0002373,2]
[422487720,1778991038000,-2051.34953343,0.00023724,2]
[422487726,1778991038000,-377.02817999,0.0002373,2]
[422487722,1778991038000,-500.0,0.0002373,2]
[422487724,1778991038000,-500.0,0.0002373,2]
[422487674,1778991038000,-500.0,0.0002343,2]
[422487701,1778991038000,-500.0,0.0002343,2]
[422487704,1778991038000,-512.70710012,0.0002343,2]
[422487713,1778991038000,-152.0,0.00023562,2]
[422487693,1778991038000,-500.0,0.0002343,2]
[422487678,1778991038000,-500.0,0.0002343,2]
[422487698,1778991038000,-500.0,0.0002343,2]
[422487679,1778991038000,-500.0,0.0002343,2]
[422487680,1778991038000,-500.0,0.0002343,2]
[422487681,1778991038000,-500.0,0.0002343,2]
[422487682,1778991038000,-500.0,0.0002343,2]
[422487686,1778991038000,-504.31823743,0.0002343,2]
[422487690,1778991038000,-506.10311636,0.0002343,2]
[422487684,1778991038000,-500.0,0.0002343,2]
[422487687,1778991038000,-500.0,0.0002343,2]
[422487688,1778991038000,-500.0,0.0002343,2]
[422487683,1778991038000,-509.9741162,0.0002343,2]
[422487689,1778991038000,-500.0,0.0002343,2]
[422487691,1778991038000,-500.0,0.0002343,2]
[422487692,1778991038000,-527.43788635,0.0002343,2]
[422487696,1778991038000,-500.0,0.0002343,2]
[422487695,1778991038000,-500.0,0.0002343,2]
[422487697,1778991038000,-500.0,0.0002343,2]
[422487702,1778991038000,-500.0,0.0002343,2]
[422487694,1778991038000,-500.0,0.0002343,2]
[422487685,1778991038000,-525.39,0.0002343,2]
[422487703,1778991038000,-500.0,0.0002343,2]
[422487699,1778991038000,-500.0,0.0002343,2]
[422487762,1778991039000,-2051.34953343,0.00024707,2]
[422487770,1778991039000,-162.0,0.00025,2]
[422487771,1778991039000,-503.20696367,0.00025,2]
[422487764,1778991039000,-2051.34953343,0.00024903,2]
[422487766,1778991039000,-300.0,0.00024999,10]
[422487767,1778991039000,-300.0,0.00024999,10]
[422487760,1778991039000,-449.13,0.00024658,2]
[422487768,1778991039000,-259.0979994,0.00025,2]
[422487761,1778991039000,-721.01,0.000247,2]
[422487765,1778991039000,-333.01929003,0.0002499,2]
[422487772,1778991039000,-179.85,0.00025,2]
[422487769,1778991039000,-356.19440823,0.00025,2]
[422487763,1778991039000,-733.82058891,0.000249,2]
[422487773,1778991039000,-179.86,0.00025,2]
[422487784,1778991039000,-167.528222,0.00025,2]
[422487776,1778991039000,-7063.72083826,0.00025,21]
[422487774,1778991039000,-195.0,0.00025,2]
[422487779,1778991039000,-2279.78960302,0.00025,2]
[422487777,1778991039000,-56617.88213438,0.00025,7]
[422487778,1778991039000,-541.96263774,0.00025,5]
[422487780,1778991039000,-215.0785988,0.00025,7]
[422487781,1778991039000,-1585514.55745356,0.00025,2]
[422487783,1778991039000,-167.528222,0.00025,2]
[422487782,1778991039000,-167.528222,0.00025,2]
[422487785,1778991039000,-167.528222,0.00025,2]
[422487789,1778991039000,-1404.23803,0.00025,2]
[422487794,1778991039000,-261.245373,0.00025,2]
[422487791,1778991039000,-151.0,0.00025,2]
[422487759,1778991039000,-1000.0,0.00024658,2]
[422487775,1778991039000,-272.49820234,0.00025,2]
[422487758,1778991039000,-166.66,0.00024657,2]
[422487737,1778991039000,-166.66,0.00023894,2]
[422487752,1778991039000,-733.82058891,0.00024211,2]
[422487797,1778991039000,-151.0,0.00025,2]
[422487727,1778991039000,-500.0,0.0002373,2]
[422487730,1778991039000,-476.1886123,0.0002373,2]
[422487729,1778991039000,-636.76912385,0.0002373,2]
[422487728,1778991039000,-500.0,0.0002373,2]
[422487732,1778991039000,-500.0,0.0002373,2]
[422487731,1778991039000,-500.0,0.0002373,2]
[422487735,1778991039000,-2000.0,0.00023839,2]
[422487739,1778991039000,-214.36,0.00023976,2]
[422487742,1778991039000,-154.0,0.00024,2]
[422487741,1778991039000,-343.0,0.00024,2]
[422487743,1778991039000,-491.0,0.00024,2]
[422487733,1778991039000,-500.0,0.0002373,2]
[422487734,1778991039000,-222.83523923,0.0002373,2]
[422487738,1778991039000,-2051.34953343,0.00023921,2]
[422487740,1778991039000,-246.0,0.00024,2]
[422487736,1778991039000,-733.82058891,0.00023867,2]
[422487745,1778991039000,-264.0,0.00024,2]
[422487744,1778991039000,-193.0,0.00024,2]
[422487750,1778991039000,-1999.64,0.00024174,2]
[422487747,1778991039000,-181.84,0.00024113,2]
[422487755,1778991039000,-2051.34953343,0.0002451,2]
[422487753,1778991039000,-2051.34953343,0.00024314,2]
[422487751,1778991039000,-3753.96495443,0.0002421,2]
[422487754,1778991039000,-151.0,0.00024324,2]
[422487746,1778991039000,-690.84,0.00024073,2]
[422487748,1778991039000,-2051.34953343,0.00024117,2]
[422487756,1778991039000,-733.82058891,0.00024556,2]
[422487757,1778991039000,-1631.97457154,0.00024594,2]
[422487749,1778991039000,-4609.0,0.00024137,2]
[422487790,1778991039000,-1404.23803,0.00025,2]
[422487830,1778991039000,-500.0,0.00025,2]
[422487787,1778991039000,-1404.23803,0.00025,2]
[422487826,1778991039000,-500.0,0.00025,2]
[422487828,1778991039000,-500.0,0.00025,2]
[422487838,1778991039000,-500.0,0.00025,2]
[422487827,1778991039000,-500.0,0.00025,2]
[422487832,1778991039000,-500.0,0.00025,2]
[422487831,1778991039000,-500.0,0.00025,2]
[422487829,1778991039000,-500.0,0.00025,2]
[422487833,1778991039000,-500.0,0.00025,2]
[422487837,1778991039000,-500.0,0.00025,2]
[422487834,1778991039000,-500.0,0.00025,2]
[422487835,1778991039000,-500.0,0.00025,2]
[422487856,1778991039000,-592.735492,0.00025,2]
[422487836,1778991039000,-500.0,0.00025,2]
[422487817,1778991039000,-500.0,0.00025,2]
[422487839,1778991039000,-500.0,0.00025,2]
[422487840,1778991039000,-500.0,0.00025,2]
[422487843,1778991039000,-500.0,0.00025,2]
[422487842,1778991039000,-500.0,0.00025,2]
[422487844,1778991039000,-500.0,0.00025,2]
[422487845,1778991039000,-500.0,0.00025,2]
[422487847,1778991039000,-500.0,0.00025,2]
[422487846,1778991039000,-500.0,0.00025,2]
[422487848,1778991039000,-500.0,0.00025,2]
[422487849,1778991039000,-592.735492,0.00025,2]
[422487851,1778991039000,-500.0,0.00025,2]
[422487854,1778991039000,-500.0,0.00025,2]
[422487853,1778991039000,-500.0,0.00025,2]
[422487855,1778991039000,-500.0,0.00025,2]
[422487841,1778991039000,-500.0,0.00025,2]
[422487818,1778991039000,-500.0,0.00025,2]
[422487852,1778991039000,-500.0,0.00025,2]
[422487815,1778991039000,-500.0,0.00025,2]
[422487821,1778991039000,-500.0,0.00025,2]
[422487788,1778991039000,-151.0,0.00025,2]
[422487786,1778991039000,-1404.23803,0.00025,2]
[422487792,1778991039000,-151.0,0.00025,2]
[422487796,1778991039000,-261.245373,0.00025,2]
[422487795,1778991039000,-261.245373,0.00025,2]
[422487798,1778991039000,-500.0,0.00025,2]
[422487800,1778991039000,-500.0,0.00025,2]
[422487805,1778991039000,-500.0,0.00025,2]
[422487801,1778991039000,-500.0,0.00025,2]
[422487811,1778991039000,-500.0,0.00025,2]
[422487802,1778991039000,-500.0,0.00025,2]
[422487799,1778991039000,-500.0,0.00025,2]
[422487810,1778991039000,-500.0,0.00025,2]
[422487804,1778991039000,-500.0,0.00025,2]
[422487793,1778991039000,-261.245373,0.00025,2]
[422487808,1778991039000,-500.0,0.00025,2]
[422487809,1778991039000,-500.0,0.00025,2]
[422487820,1778991039000,-500.0,0.00025,2]
[422487819,1778991039000,-500.0,0.00025,2]
[422487813,1778991039000,-500.0,0.00025,2]
[422487824,1778991039000,-500.0,0.00025,2]
[422487823,1778991039000,-500.0,0.00025,2]
[422487816,1778991039000,-500.0,0.00025,2]
[422487814,1778991039000,-500.0,0.00025,2]
[422487806,1778991039000,-500.0,0.00025,2]
[422487825,1778991039000,-500.0,0.00025,2]
[422487803,1778991039000,-500.0,0.00025,2]
[422487822,1778991039000,-160.0,0.00025,7]
[422487807,1778991039000,-500.0,0.00025,2]
[422487812,1778991039000,-500.0,0.00025,2]
[422487888,1778991040000,-215.895752,0.00025,2]
[422487889,1778991040000,-215.895752,0.00025,2]
[422487886,1778991040000,-215.895752,0.00025,2]
[422487892,1778991040000,-2163.748438,0.00025,2]
[422487891,1778991040000,-2163.748438,0.00025,2]
[422487894,1778991040000,-151.0,0.00025,2]
[422487893,1778991040000,-2163.748438,0.00025,2]
[422487895,1778991040000,-151.0,0.00025,2]
[422487899,1778991040000,-1045.76058024,0.000252,2]
[422487898,1778991040000,-2051.34953343,0.000251,2]
[422487890,1778991040000,-2163.748438,0.00025,2]
[422487904,1778991040000,-181.84,0.00025319,2]
[422487900,1778991040000,-1326.256695,0.000252,2]
[422487896,1778991040000,-151.0,0.00025,2]
[422487901,1778991040000,-160.0,0.00025213,2]
[422487902,1778991040000,-215.0785988,0.00025213,2]
[422487885,1778991040000,-151.0,0.00025,2]
[422487913,1778991040000,-1326.256695,0.000255,2]
[422487906,1778991040000,-353.33310697,0.00025397,2]
[422487905,1778991040000,-11340.79548359,0.00025327,2]
[422487903,1778991040000,-208.48490792,0.00025213,2]
[422487907,1778991040000,-643.95737728,0.00025397,2]
[422487909,1778991040000,-193.86463689,0.00025397,2]
[422487911,1778991040000,-690.84,0.00025443,2]
[422487897,1778991040000,-151.0,0.00025,2]
[422487887,1778991040000,-215.895752,0.00025,2]
[422487878,1778991040000,-176.847513,0.00025,2]
[422487882,1778991040000,-151.0,0.00025,2]
[422487910,1778991040000,-166.66,0.00025421,2]
[422487858,1778991040000,-500.0,0.00025,2]
[422487857,1778991040000,-500.0,0.00025,2]
[422487859,1778991040000,-500.0,0.00025,2]
[422487860,1778991040000,-500.0,0.00025,2]
[422487861,1778991040000,-500.0,0.00025,2]
[422487862,1778991040000,-592.735492,0.00025,2]
[422487863,1778991040000,-500.0,0.00025,2]
[422487864,1778991040000,-500.0,0.00025,2]
[422487865,1778991040000,-500.0,0.00025,2]
[422487866,1778991040000,-500.0,0.00025,2]
[422487870,1778991040000,-500.0,0.00025,2]
[422487872,1778991040000,-500.0,0.00025,2]
[422487868,1778991040000,-592.735492,0.00025,2]
[422487869,1778991040000,-500.0,0.00025,2]
[422487867,1778991040000,-500.0,0.00025,2]
[422487871,1778991040000,-176.847513,0.00025,2]
[422487875,1778991040000,-500.0,0.00025,2]
[422487874,1778991040000,-500.0,0.00025,2]
[422487876,1778991040000,-210.259162,0.00025,2]
[422487877,1778991040000,-176.847513,0.00025,2]
[422487879,1778991040000,-151.0,0.00025,2]
[422487880,1778991040000,-176.847513,0.00025,2]
[422487883,1778991040000,-151.0,0.00025,2]
[422487881,1778991040000,-151.0,0.00025,2]
[422487884,1778991040000,-151.0,0.00025,2]
[422487873,1778991040000,-500.0,0.00025,2]
[422487908,1778991040000,-292.5918279,0.00025397,2]
[422487914,1778991040000,-1631.97457154,0.00025528,2]
[422487946,1778991040000,-150.0,0.00026862,2]
[422487941,1778991040000,-2000.0,0.00026487,2]
[422487942,1778991040000,-1804.0,0.00026505,2]
[422487947,1778991040000,-215.0,0.00026862,2]
[422487945,1778991040000,-279.0,0.00026862,2]
[422487948,1778991040000,-300.0,0.00026881,10]
[422487952,1778991040000,-270.82,0.00026957,2]
[422487964,1778991040000,-500.0,0.00027123,2]
[422487956,1778991040000,-241.21762394,0.00027123,2]
[422487954,1778991040000,-398.91020292,0.00027122,10]
[422487953,1778991040000,-2157.0,0.000271,7]
[422487955,1778991040000,-150.0,0.00027123,2]
[422487957,1778991040000,-150.0,0.00027123,2]
[422487963,1778991040000,-176.41211955,0.00027123,2]
[422487958,1778991040000,-500.0,0.00027123,2]
[422487959,1778991040000,-150.0,0.00027123,2]
[422487960,1778991040000,-150.0,0.00027123,2]
[422487962,1778991040000,-150.0,0.00027123,2]